bitfinex/quotes_BTCUSD_20241101
["timestamp","ask_amount","ask_price","bid_price","bid_amount"]
[1730428742455,0.287863,69478.0,69468.0,0.143951]
[1730428742456,0.369963,69478.0,69468.0,0.143951]
[1730428742674,0.143944,69472.0,69465.0,0.13845525]
[1730428742886,0.143944,69472.0,69467.0,0.143953]
[1730428743101,0.431817,69474.0,69467.0,0.143953]
[1730428743312,0.14394,69474.0,69465.0,0.13845525]
[1730428743522,0.14394,69474.0,69466.0,0.33579489]
[1730428743742,0.14394,69474.0,69468.0,0.143951]
[1730428744589,0.143943,69472.0,69467.0,0.143952]
[1730428745256,0.144764,69470.0,69466.0,0.04788489]
[1730428745469,0.01425356,69469.0,69464.0,0.15306821]
[1730428745677,0.01425356,69469.0,69465.0,0.13845525]
[1730428745884,0.02687442,69468.0,69465.0,0.13845525]
[1730428746091,0.02687356,69467.0,69465.0,0.13845525]
[1730428746329,0.000816,69469.0,69465.0,0.28241225]
[1730428746554,0.01343623,69468.0,69465.0,0.28241225]
[1730428746765,0.000816,69469.0,69466.0,0.143954]
[1730428746766,0.02687247,69467.0,69466.0,0.143954]
[1730428747175,0.000816,69469.0,69466.0,0.143954]
[1730428747393,0.01344067,69468.0,69466.0,0.143954]
[1730428747639,0.000816,69469.0,69467.0,0.05703323]
[1730428747842,0.01344064,69468.0,69467.0,0.05703323]
[1730428748045,0.01344064,69468.0,69467.0,0.20098623]
[1730428749020,0.01344064,69468.0,69467.0,0.68846512]
[1730428749221,0.000816,69469.0,69468.0,0.166951]
[1730428749428,0.000816,69469.0,69468.0,0.42999171]
[1730428749658,0.000816,69469.0,69468.0,0.45595314]
[1730428750337,0.000816,69469.0,69468.0,0.56295314]
[1730428750552,0.000816,69469.0,69468.0,0.56795314]
[1730428751238,0.000816,69469.0,69468.0,0.56595314]
[1730428751474,0.000816,69469.0,69468.0,0.6090173]
[1730428751689,0.000816,69469.0,69468.0,0.60901605]
[1730428752372,0.000816,69469.0,69468.0,0.56595314]
[1730428753044,0.000816,69469.0,69468.0,0.56795314]
[1730428753311,0.000816,69469.0,69468.0,0.57677262]
[1730428753532,0.000816,69469.0,69468.0,0.71793554]
[1730428753752,0.000816,69469.0,69468.0,0.75477262]
[1730428753973,0.000816,69469.0,69468.0,0.97826035]
[1730428754425,0.000816,69469.0,69468.0,0.75277262]
[1730428754846,0.000816,69469.0,69468.0,0.72393262]
[1730428755466,0.000816,69469.0,69468.0,0.76896053]
[1730428755677,0.000816,69469.0,69468.0,0.72593262]
[1730428756306,0.000816,69469.0,69468.0,0.76895327]
[1730428756528,0.000816,69469.0,69468.0,0.72593262]
[1730428756768,0.000816,69490.0,69484.0,0.43294164]
[1730428757009,0.21769576,69486.0,69484.0,0.64004342]
[1730428757238,0.000816,69490.0,69484.0,0.64004342]
[1730428757950,0.000816,69490.0,69484.0,0.64504342]
[1730428758864,0.000816,69490.0,69484.0,0.47811978]
[1730428759779,0.000816,69490.0,69484.0,0.58511978]
[1730428759998,0.000816,69490.0,69484.0,0.58311978]
[1730428760914,0.000816,69490.0,69484.0,0.59194491]
[1730428761155,0.000816,69490.0,69484.0,0.58694491]
[1730428762080,0.000816,69490.0,69484.0,0.59194491]
[1730428762298,0.000816,69490.0,69484.0,0.58694491]
[1730428762772,0.000816,69490.0,69484.0,0.59194491]
[1730428763239,0.000816,69490.0,69484.0,0.58694491]
[1730428763490,0.000816,69490.0,69484.0,0.59194491]
[1730428764684,0.000816,69490.0,69484.0,0.59394491]
[1730428765616,0.000816,69490.0,69484.0,0.59194491]
[1730428768444,0.000816,69490.0,69484.0,0.00882513]
[1730428768445,0.175016,69485.0,69484.0,0.00882513]
[1730428768450,0.153926,69480.0,69469.0,0.11617951]
[1730428768679,0.29238125,69480.0,69469.0,0.33387527]
[1730428768924,0.37158125,69480.0,69469.0,0.33387527]
[1730428769152,0.233126,69480.0,69469.0,0.33387527]
[1730428777003,0.228126,69480.0,69469.0,0.33387527]
[1730428777204,0.143926,69480.0,69472.0,0.16692364]
[1730428777619,0.143926,69480.0,69469.0,0.33387527]
[1730428777826,0.143926,69480.0,69478.0,0.16692364]
[1730428778037,0.143926,69480.0,69474.0,0.16692364]
[1730428779964,0.143926,69480.0,69473.0,0.14394]
[1730428780172,0.143926,69480.0,69469.0,0.33387527]
[1730428780376,0.143926,69480.0,69471.0,0.143943]
[1730428780585,0.143926,69480.0,69472.0,0.143941]
[1730428780996,0.143926,69480.0,69469.0,0.33387527]
[1730428781209,0.143926,69480.0,69471.0,0.143943]
[1730428781625,0.143926,69480.0,69472.0,0.143942]
[1730428782885,0.143926,69480.0,69471.0,0.287887]
[1730428783294,0.287838,69484.0,69471.0,0.287887]
[1730428783505,0.143922,69482.0,69477.0,0.143931]
[1730428783708,0.143922,69482.0,69480.0,0.0433444]
[1730428784040,0.287838,69484.0,69480.0,0.0433444]
[1730428784041,0.143924,69481.0,69480.0,0.0433444]
[1730428784249,0.143924,69481.0,69476.0,0.21769576]
[1730428785701,0.143921,69483.0,69477.0,0.143932]
[1730428785917,0.000821,69484.0,69476.0,0.21769576]
[1730428786116,0.000821,69484.0,69479.0,0.145568]
[1730428786323,0.000821,69484.0,69480.0,0.09390078]
[1730428786520,0.144739,69484.0,69480.0,0.09390078]
[1730428787498,0.14392,69483.0,69480.0,0.09390078]
[1730428787719,0.144739,69484.0,69480.0,0.09390078]
[1730428788555,0.14392,69483.0,69480.0,0.09390078]
[1730428788757,0.14392,69483.0,69481.0,0.04659527]
[1730428790657,0.000821,69484.0,69481.0,0.04659527]
[1730428790658,0.144739,69484.0,69481.0,0.04659527]
[1730428790866,0.144739,69484.0,69479.0,0.145569]
[1730428793135,1.144739,69484.0,69479.0,0.145569]
[1730428793545,1.000821,69484.0,69480.0,0.143926]
[1730428793903,1.000821,69484.0,69483.0,0.36161576]
[1730428794107,1.000821,69484.0,69483.0,0.28237525]
[1730428794315,1.000821,69484.0,69483.0,0.38504024]
[1730428795670,1.000821,69484.0,69480.0,0.143926]
[1730428795906,1.000821,69484.0,69479.0,0.001642]
[1730428796138,0.143926,69480.0,69479.0,0.001642]
[1730428796544,0.148926,69480.0,69479.0,0.001642]
[1730428796754,0.229026,69480.0,69479.0,0.001642]
[1730428799820,0.224026,69480.0,69479.0,0.001642]
[1730428800440,0.143926,69480.0,69479.0,0.001642]
[1730428802444,0.148926,69480.0,69479.0,0.001642]
[1730428804001,0.150926,69480.0,69479.0,0.001642]
[1730428804396,0.148926,69480.0,69479.0,0.001642]
[1730428806361,0.143926,69480.0,69479.0,0.001642]
[1730428806550,0.148926,69480.0,69479.0,0.001642]
[1730428807159,0.143926,69480.0,69479.0,0.001642]
[1730428809375,1.29366,69484.0,69479.0,0.001642]
[1730428809376,1.000821,69484.0,69479.0,0.001642]
[1730428809540,1.14474,69484.0,69479.0,0.001642]
[1730428809743,1.000821,69484.0,69479.0,0.001642]
[1730428809959,0.143923,69482.0,69480.0,0.02436473]
[1730428810361,0.143923,69482.0,69479.0,0.001642]
[1730428810738,1.000821,69484.0,69479.0,0.001642]
[1730428810951,0.143924,69481.0,69479.0,0.001642]
[1730428812178,0.31584964,69480.0,69479.0,0.001642]
[1730428812392,0.39454964,69480.0,69479.0,0.001642]
[1730428817372,0.31584964,69480.0,69479.0,0.001642]
[1730428821707,0.143926,69480.0,69479.0,0.001642]
[1730428826333,1.000821,69484.0,69480.0,0.1696]
[1730428826788,0.143924,69481.0,69480.0,0.1696]
[1730428827059,0.143921,69483.0,69480.0,0.2011175]
[1730428827294,0.143922,69482.0,69480.0,0.2011175]
[1730428827750,1.000821,69484.0,69480.0,0.2011175]
[1730428827972,0.143924,69481.0,69480.0,0.2011175]
[1730428828199,0.143922,69482.0,69480.0,0.0315175]
[1730428828418,0.143922,69482.0,69479.0,0.001642]
[1730428829324,0.143925,69481.0,69479.0,0.001642]
[1730428829560,0.431761,69483.0,69479.0,0.001642]
[1730428829801,0.143923,69482.0,69479.0,0.001642]
[1730428830029,0.143923,69482.0,69479.0,0.05764978]
[1730428830505,0.143924,69481.0,69479.0,0.05764978]
[1730428830759,0.143926,69480.0,69479.0,0.05764978]
[1730428830997,0.1573838,69480.0,69479.0,0.001642]
[1730428831502,0.15738231,69480.0,69479.0,0.001642]
[1730428831712,0.16238231,69480.0,69479.0,0.001642]
[1730428831930,0.148926,69480.0,69479.0,0.001642]
[1730428833651,0.33540991,69480.0,69479.0,0.001642]
[1730428833867,0.51703575,69480.0,69479.0,0.001642]
[1730428834092,0.61043575,69480.0,69479.0,0.001642]
[1730428834514,0.61769611,69480.0,69479.0,0.001642]
[1730428835836,0.61043575,69480.0,69479.0,0.001642]
[1730428840096,0.62385156,69480.0,69479.0,0.001642]
[1730428842855,0.62385437,69480.0,69479.0,0.001642]
[1730428843943,0.61043575,69480.0,69479.0,0.001642]
[1730428846184,0.56778125,69480.0,69479.0,0.001642]
[1730428846888,0.61031348,69480.0,69479.0,0.001642]
[1730428848092,0.64672233,69480.0,69479.0,0.001642]
[1730428848341,0.64922212,69480.0,69479.0,0.001642]
[1730428848801,0.505947,69470.0,69469.0,0.11617951]
[1730428849028,0.7380111,69470.0,69469.0,0.11617951]
[1730428849255,0.823855,69470.0,69469.0,0.11617951]
[1730428849929,0.7380111,69470.0,69469.0,0.11617951]
[1730428850163,1.08281644,69470.0,69469.0,0.00101951]
[1730428850376,0.8515111,69470.0,69469.0,0.00101951]
[1730428850585,0.8515111,69470.0,69469.0,5.1e-07]
[1730428851031,0.83810225,69470.0,69469.0,5.1e-07]
[1730428851253,0.90245051,69470.0,69469.0,5.1e-07]
[1730428851463,0.90245051,69470.0,69451.0,0.001642]
[1730428851464,0.25,69457.0,69456.0,0.22149658]
[1730428851681,0.88855189,69457.0,69456.0,0.22149658]
[1730428852146,0.88855189,69457.0,69456.0,0.00380082]
[1730428852794,0.71962825,69457.0,69456.0,0.00380082]
[1730428853204,0.76252996,69457.0,69456.0,0.00380082]
[1730428853418,0.76452996,69457.0,69456.0,0.00380082]
[1730428854538,0.155984,69452.0,69451.0,0.001642]
[1730428854790,0.56136289,69452.0,69451.0,0.001642]
[1730428855017,0.56136289,69452.0,69434.0,0.21769576]
[1730428855018,0.255,69442.0,69434.0,0.21769576]
[1730428855234,0.70438389,69442.0,69434.0,0.21769576]
[1730428855456,0.81138389,69442.0,69434.0,0.21769576]
[1730428855684,0.399019,69435.0,69434.0,0.21769576]
[1730428855903,0.56594264,69435.0,69434.0,0.21769576]
[1730428856139,0.005,69433.0,69430.0,0.079242]
[1730428856356,0.31095064,69431.0,69430.0,0.079242]
[1730428856572,0.144027,69431.0,69430.0,0.079242]
[1730428857501,0.144027,69431.0,69430.0,0.001642]
[1730428858337,0.144027,69431.0,69430.0,0.16856564]
[1730428858518,0.144027,69431.0,69430.0,0.24706564]
[1730428859368,0.144005,69442.0,69431.0,0.0958]
[1730428859580,0.288031,69437.0,69431.0,0.13025076]
[1730428859752,0.144025,69432.0,69431.0,0.13025076]
[1730428860042,0.144025,69432.0,69431.0,0.2971744]
[1730428860458,0.144025,69432.0,69431.0,0.26272364]
[1730428860651,0.144025,69432.0,69431.0,0.0958]
[1730428862438,0.144025,69432.0,69431.0,0.26272364]
[1730428862866,0.144025,69432.0,69431.0,0.0958]
[1730428864007,0.144027,69431.0,69430.0,0.080142]
[1730428865839,0.144027,69431.0,69430.0,0.0883204]
[1730428866245,0.144027,69431.0,69430.0,0.080142]
[1730428868265,0.28803,69438.0,69430.0,0.080142]
[1730428868465,0.288024,69439.0,69433.0,0.16692364]
[1730428868667,0.144011,69440.0,69434.0,0.081]
[1730428868889,0.287993,69446.0,69434.0,0.081]
[1730428869097,0.144014,69438.0,69434.0,0.081]
[1730428869267,0.144014,69438.0,69435.0,0.06240449]
[1730428869477,0.144015,69437.0,69434.0,0.081]
[1730428871069,0.144012,69439.0,69434.0,0.081]
[1730428871781,0.144013,69438.0,69434.0,0.081]
[1730428872218,0.22269576,69447.0,69434.0,0.081]
[1730428872432,0.144011,69439.0,69434.0,0.225019]
[1730428872635,0.22269576,69447.0,69434.0,0.19397837]
[1730428872854,0.144014,69438.0,69434.0,0.19397837]
[1730428876934,0.144011,69439.0,69434.0,0.33799837]
[1730428877169,0.28802,69440.0,69434.0,0.081]
[1730428877408,0.144014,69438.0,69434.0,0.081]
[1730428878342,0.144007,69441.0,69435.0,0.144019]
[1730428878617,0.000822,69451.0,69437.0,0.0982]
[1730428878860,0.000822,69451.0,69449.0,0.16692364]
[1730428879145,0.144009,69440.0,69439.0,0.1746]
[1730428879354,0.005,69448.0,69433.0,0.0764]
[1730428879355,0.144018,69436.0,69433.0,0.0764]
[1730428879564,0.144021,69434.0,69433.0,0.0764]
[1730428879979,0.144021,69434.0,69431.0,0.001644]
[1730428879980,0.144025,69432.0,69431.0,0.001644]
[1730428881548,0.21769576,69433.0,69431.0,0.001644]
[1730428881759,0.144025,69432.0,69431.0,0.001644]
[1730428884154,0.15751424,69432.0,69431.0,0.001644]
[1730428884894,0.15751416,69432.0,69431.0,0.001644]
[1730428886819,0.01348916,69432.0,69431.0,0.001644]
[1730428887020,0.15751416,69432.0,69431.0,0.001644]
[1730428887846,0.01348916,69432.0,69431.0,0.001644]
[1730428888153,0.288028,69438.0,69432.0,0.0825]
[1730428888371,0.144017,69436.0,69432.0,0.0825]
[1730428888588,0.144018,69436.0,69432.0,0.0825]
[1730428889011,0.288018,69440.0,69432.0,0.0825]
[1730428889457,0.144019,69436.0,69432.0,0.0825]
[1730428889670,0.288018,69440.0,69432.0,0.0825]
[1730428889903,0.144023,69433.0,69432.0,0.0825]
[1730428890336,0.15751629,69433.0,69432.0,0.0825]
[1730428890619,0.01349329,69433.0,69432.0,0.0825]
[1730428890807,0.01349329,69433.0,69432.0,0.2734807]
[1730428891051,0.01349329,69433.0,69432.0,0.41193595]
[1730428891490,0.01349251,69433.0,69432.0,0.26791095]
[1730428891720,0.01349251,69433.0,69432.0,0.69998395]
[1730428892363,0.14401,69440.0,69433.0,0.144022]
[1730428892569,0.01349022,69439.0,69434.0,0.09658906]
[1730428892776,0.01349022,69439.0,69434.0,0.24061006]
[1730428894507,0.14401,69440.0,69434.0,0.09658906]
[1730428894714,0.144008,69441.0,69435.0,0.144017]
[1730428894923,0.21769576,69449.0,69434.0,0.09658906]
[1730428895131,0.04394727,69451.0,69436.0,0.288034]
[1730428895338,0.287982,69449.0,69442.0,0.144004]
[1730428895548,0.000822,69451.0,69442.0,0.144003]
[1730428895549,0.143992,69448.0,69442.0,0.144003]
[1730428895765,0.000822,69451.0,69443.0,0.0144003]
[1730428895766,0.143991,69449.0,69443.0,0.0144003]
[1730428895978,0.000822,69451.0,69445.0,0.097]
[1730428896195,0.144809,69451.0,69445.0,0.240997]
[1730428896404,0.143988,69450.0,69445.0,0.097]
[1730428896612,0.143988,69450.0,69446.0,0.06447349]
[1730428897068,0.13845525,69450.0,69434.0,0.0767]
[1730428897287,0.13845525,69450.0,69436.0,0.21769576]
[1730428897288,0.144016,69437.0,69436.0,0.21769576]
[1730428897717,0.144019,69435.0,69434.0,0.0767]
[1730428897918,0.144025,69432.0,69431.0,0.097444]
[1730428898427,0.288026,69438.0,69431.0,0.1150668]
[1730428898635,0.144018,69436.0,69431.0,0.1150668]
[1730428899264,0.14402,69435.0,69431.0,0.1150668]
[1730428899484,0.288026,69439.0,69431.0,0.1150668]
[1730428899696,0.144022,69434.0,69432.0,0.03362398]
[1730428900122,0.288026,69438.0,69432.0,0.03362398]
[1730428900339,0.288026,69438.0,69431.0,0.1150668]
[1730428900340,0.144025,69432.0,69431.0,0.001644]
[1730428907812,0.144019,69436.0,69431.0,0.31259364]
[1730428908021,0.144007,69441.0,69435.0,0.16692364]
[1730428908223,0.144007,69441.0,69436.0,0.19231829]
[1730428908656,0.144003,69443.0,69438.0,0.144012]
[1730428909126,0.287987,69448.0,69436.0,0.04830229]
[1730428909127,0.287987,69448.0,69439.0,0.16692364]
[1730428909346,0.287976,69450.0,69439.0,0.16692364]
[1730428909573,0.144004,69443.0,69440.0,0.03592399]
[1730428911224,0.14399,69449.0,69440.0,0.03592399]
[1730428911449,0.144004,69443.0,69440.0,0.03592399]
[1730428912141,0.144005,69442.0,69440.0,0.03592399]
[1730428912620,0.000822,69451.0,69441.0,0.18352249]
[1730428912833,0.143997,69446.0,69441.0,0.03951649]
[1730428913093,0.144,69445.0,69439.0,0.31093364]
[1730428913601,0.144001,69444.0,69439.0,0.31093364]
[1730428913850,0.144003,69443.0,69439.0,0.31093364]
[1730428914997,0.144003,69443.0,69439.0,0.16692364]
[1730428915235,0.144003,69443.0,69440.0,0.06472689]
[1730428916552,0.143998,69446.0,69441.0,0.144006]
[1730428916762,0.143999,69445.0,69440.0,0.20873489]
[1730428916979,0.143998,69446.0,69440.0,0.20873489]
[1730428917199,0.143998,69446.0,69441.0,0.07119918]
[1730428918076,0.143999,69445.0,69441.0,0.07119918]
[1730428918307,0.143993,69448.0,69442.0,0.0755]
[1730428918519,0.000822,69451.0,69447.0,0.16692364]
[1730428918731,0.000822,69451.0,69449.0,0.143989]
[1730428919162,0.000822,69451.0,69450.0,0.143988]
[1730428919380,0.000822,69451.0,69448.0,0.143992]
[1730428919619,0.000822,69451.0,69449.0,0.05989126]
[1730428920740,0.000822,69451.0,69427.0,0.002]
[1730428920741,0.144004,69443.0,69437.0,0.0796]
[1730428920948,0.144004,69443.0,69442.0,0.21769576]
[1730428920949,0.144002,69443.0,69442.0,0.21769576]
[1730428921240,0.144002,69443.0,69437.0,0.0796]
[1730428921241,0.144002,69444.0,69438.0,0.144013]
[1730428921453,0.000822,69451.0,69437.0,0.0796]
[1730428921454,0.288001,69445.0,69439.0,0.08316488]
[1730428921673,0.000822,69451.0,69434.0,0.21769576]
[1730428921883,0.000822,69451.0,69424.0,0.316922]
[1730428921884,0.144015,69437.0,69433.0,0.21769576]
[1730428922527,0.144015,69437.0,69432.0,0.28248025]
[1730428922744,0.288021,69440.0,69432.0,0.13845525]
[1730428922951,0.288021,69440.0,69433.0,0.08314191]
[1730428923156,0.144018,69436.0,69433.0,0.08314191]
[1730428923775,0.288021,69440.0,69433.0,0.22716491]
[1730428924405,0.144014,69438.0,69433.0,0.08314191]
[1730428924619,0.144019,69436.0,69433.0,0.08314191]
[1730428924824,0.144013,69438.0,69432.0,0.144024]
[1730428925005,0.144013,69438.0,69433.0,0.144023]
[1730428925681,0.287993,69446.0,69431.0,0.29682107]
[1730428925892,0.000822,69451.0,69434.0,0.59342189]
[1730428926073,0.144007,69442.0,69436.0,0.144016]
[1730428926311,0.144007,69442.0,69436.0,0.2186364]
[1730428926713,0.144007,69442.0,69436.0,0.0746204]
[1730428926918,0.432003,69444.0,69438.0,0.144013]
[1730428927123,0.287981,69449.0,69437.0,0.28803]
[1730428927330,0.143999,69445.0,69439.0,0.14401]
[1730428927545,0.287976,69450.0,69440.0,0.05066604]
[1730428927760,0.144005,69442.0,69436.0,0.0746204]
[1730428927977,0.144005,69442.0,69437.0,0.36170976]
[1730428928408,0.144005,69442.0,69437.0,0.144014]
[1730428928640,0.288001,69444.0,69431.0,0.145671]
[1730428928838,0.288006,69443.0,69432.0,0.21769576]
[1730428929066,0.144015,69437.0,69432.0,0.21769576]
[1730428929291,0.144015,69437.0,69433.0,0.07405708]
[1730428929747,0.288014,69441.0,69433.0,0.07405708]
[1730428929968,0.144006,69442.0,69436.0,0.144015]
[1730428930393,0.144007,69441.0,69436.0,0.144015]
[1730428933221,0.144007,69441.0,69434.0,0.13845525]
[1730428933439,0.144007,69441.0,69435.0,0.06004177]
[1730428933653,0.287993,69446.0,69435.0,0.15184177]
[1730428933847,0.144001,69444.0,69435.0,0.29029702]
[1730428933991,0.287984,69449.0,69435.0,0.43431602]
[1730428934217,0.144002,69444.0,69435.0,0.43431602]
[1730428934421,0.144002,69444.0,69437.0,0.0822]
[1730428934616,0.287989,69447.0,69437.0,0.0822]
[1730428934967,0.144007,69441.0,69437.0,0.0822]
[1730428935202,0.287989,69447.0,69437.0,0.0822]
[1730428935203,0.287993,69446.0,69437.0,0.0822]
[1730428935334,0.144004,69443.0,69437.0,0.0822]
[1730428935561,0.144004,69443.0,69438.0,0.07799397]
[1730428936171,0.287993,69446.0,69438.0,0.07799397]
[1730428936407,0.144007,69441.0,69438.0,0.07799397]
[1730428936638,0.144001,69444.0,69438.0,0.07799397]
[1730428936847,0.000822,69451.0,69444.0,0.1747]
[1730428937088,0.000822,69451.0,69450.0,0.31091164]
[1730428937315,0.000822,69451.0,69450.0,0.62906689]
[1730428937512,0.000822,69451.0,69450.0,0.72906689]
[1730428938785,0.000822,69451.0,69450.0,0.56214325]
[1730428939024,0.000822,69451.0,69450.0,0.68764894]
[1730428939238,0.000822,69451.0,69450.0,0.69264894]
[1730428939698,0.000822,69451.0,69450.0,0.69988545]
[1730428941113,0.000822,69451.0,69450.0,0.86680909]
[1730428945889,0.000822,69451.0,69450.0,0.22849176]
[1730428946129,0.000822,69451.0,69446.0,0.1]
[1730428946354,0.000822,69451.0,69444.0,0.0793]
[1730428946569,0.287981,69449.0,69437.0,0.32681834]
[1730428946782,0.287981,69449.0,69440.0,0.0069897]
[1730428946783,0.143999,69445.0,69440.0,0.0069897]
[1730428946998,0.144001,69444.0,69441.0,0.13845525]
[1730428947216,0.000822,69451.0,69438.0,0.06248553]
[1730428947644,0.144006,69442.0,69439.0,0.04178317]
[1730428947869,0.14401,69440.0,69437.0,0.46527359]
[1730428948111,0.144006,69442.0,69437.0,0.46527359]
[1730428948330,0.144006,69442.0,69437.0,0.24757783]
[1730428948562,0.144013,69438.0,69437.0,0.24757783]
[1730428948782,0.21769576,69446.0,69437.0,0.24757783]
[1730428948783,0.144012,69439.0,69437.0,0.14009925]
[1730428948988,0.288005,69443.0,69437.0,0.14009925]
[1730428948989,0.144013,69438.0,69437.0,0.14009925]
[1730428949479,0.288005,69443.0,69437.0,0.16922446]
[1730428949480,0.144007,69441.0,69437.0,0.16922446]
[1730428950312,0.287985,69448.0,69438.0,0.31093664]
[1730428950728,0.000822,69451.0,69442.0,0.16692364]
[1730428950936,0.287977,69450.0,69443.0,0.05259547]
[1730428951153,0.144,69444.0,69443.0,0.05259547]
[1730428952968,0.143999,69445.0,69443.0,0.05259547]
[1730428953206,0.287989,69447.0,69443.0,0.05259547]
[1730428953207,0.144,69444.0,69443.0,0.05259547]
[1730428953410,0.144,69444.0,69439.0,0.14401]
[1730428955231,0.144009,69440.0,69437.0,0.19769285]
[1730428955501,0.000822,69451.0,69437.0,0.16922446]
[1730428955727,0.000822,69451.0,69438.0,0.07682141]
[1730428955728,0.21769576,69449.0,69438.0,0.07682141]
[1730428955957,0.21769576,69449.0,69437.0,0.16922446]
[1730428955958,0.21769576,69449.0,69437.0,0.14009925]
[1730428956151,0.14401,69440.0,69437.0,0.14009925]
[1730428956373,0.287989,69447.0,69437.0,0.001644]
[1730428956620,0.21769576,69446.0,69437.0,0.001644]
[1730428956803,0.144013,69438.0,69437.0,0.001644]
[1730428964141,0.241513,69438.0,69437.0,0.001644]
[1730428964809,0.144013,69438.0,69437.0,0.001644]
[1730428974962,0.31435525,69438.0,69431.0,0.001644]
[1730428975156,0.31099264,69411.0,69410.0,0.21932576]
[1730428975361,0.404069,69411.0,69410.0,0.21932576]
[1730428975908,0.404069,69411.0,69410.0,0.00163]
[1730428976075,0.54252425,69411.0,69410.0,0.00163]
[1730428976283,0.62392425,69411.0,69410.0,0.00163]
[1730428976483,0.66264359,69411.0,69410.0,0.00163]
[1730428976733,0.76264359,69411.0,69410.0,0.00163]
[1730428976942,0.78764359,69411.0,69410.0,0.00163]
[1730428977178,0.76464359,69411.0,69410.0,0.00163]
[1730428977373,0.80694433,69411.0,69410.0,0.00163]
[1730428977779,0.76464359,69411.0,69410.0,0.00163]
[1730428977982,0.80694433,69411.0,69410.0,0.00163]
[1730428978193,0.76464359,69411.0,69410.0,0.00163]
[1730428978396,0.256071,69410.0,69399.0,0.21933776]
[1730428978653,0.63618616,69410.0,69399.0,0.21933776]
[1730428979078,0.63618616,69410.0,69399.0,0.001642]
[1730428979079,0.404092,69400.0,69399.0,0.001642]
[1730428979289,0.97639453,69400.0,69399.0,0.001642]
[1730428979497,0.249102,69395.0,69394.0,0.00163]
[1730428979724,0.43127659,69395.0,69394.0,0.00163]
[1730428979953,0.47557733,69395.0,69394.0,0.00163]
[1730428980591,0.80942461,69395.0,69394.0,0.00163]
[1730428981219,0.26,69382.0,69381.0,0.00163]
[1730428981432,0.154135,69379.0,69378.0,0.21769576]
[1730428981649,0.45451389,69379.0,69378.0,0.21769576]
[1730428981861,0.14415,69372.0,69371.0,0.21985737]
[1730428982075,0.31107364,69372.0,69371.0,0.21985737]
[1730428982350,0.31107364,69372.0,69371.0,0.00216161]
[1730428982813,0.14415,69372.0,69371.0,0.00216161]
[1730428983028,0.16692364,69376.0,69371.0,0.00216161]
[1730428983232,0.144149,69373.0,69371.0,0.00216161]
[1730428983681,0.144144,69375.0,69371.0,0.00216161]
[1730428983887,0.144148,69373.0,69372.0,0.01495816]
[1730428984327,0.144148,69373.0,69371.0,0.00216161]
[1730428984328,0.14415,69372.0,69371.0,0.00216161]
[1730428984538,0.31107364,69372.0,69371.0,0.00216161]
[1730428985344,0.14415,69372.0,69371.0,0.00216161]
[1730428989817,0.144145,69375.0,69371.0,0.00216161]
[1730428990057,0.288282,69377.0,69371.0,0.06264384]
[1730428990269,0.144149,69373.0,69371.0,0.06264384]
[1730428990458,0.144149,69373.0,69371.0,0.00216161]
[1730428990622,0.14415,69372.0,69371.0,0.00216161]
[1730428991562,0.14415,69372.0,69371.0,0.00298361]
[1730428993685,0.28760525,69372.0,69371.0,0.00298361]
[1730428994381,0.32719424,69372.0,69371.0,0.00298361]
[1730428994591,0.32719424,69372.0,69371.0,0.000822]
[1730428994822,0.52946091,69372.0,69371.0,0.000822]
[1730428995051,0.53146091,69372.0,69371.0,0.000822]
[1730428995981,0.69838455,69372.0,69371.0,0.000822]
[1730428996215,0.339156,69369.0,69368.0,0.00163]
[1730428996454,0.339156,69369.0,69346.0,4.985e-05]
[1730428996455,0.399194,69351.0,69346.0,4.985e-05]
[1730428996672,0.53764925,69351.0,69346.0,4.985e-05]
[1730428997127,0.144202,69347.0,69346.0,4.985e-05]
[1730428997578,0.144202,69347.0,69331.0,0.21769576]
[1730428997579,0.144216,69340.0,69331.0,0.21769576]
[1730428998012,0.144216,69340.0,69338.0,0.16694543]
[1730428998225,0.21769576,69356.0,69339.0,0.15694279]
[1730428998449,0.21769576,69349.0,69347.0,0.16692364]
[1730428998644,0.36189376,69349.0,69347.0,0.16692364]
[1730428998849,0.288371,69355.0,69347.0,0.16692364]
[1730428999058,0.21769576,69356.0,69344.0,0.144207]
[1730428999279,0.21769576,69356.0,69340.0,0.28267025]
[1730428999484,0.144203,69347.0,69341.0,0.36190976]
[1730428999694,0.144205,69346.0,69341.0,0.28266925]
[1730428999905,0.288399,69349.0,69339.0,0.00163]
[1730428999906,0.144216,69340.0,69339.0,0.00163]
[1730429005685,0.288429,69342.0,69339.0,0.00163]
[1730429006140,0.144216,69340.0,69339.0,0.00163]
[1730429006771,0.144206,69345.0,69340.0,0.144215]
[1730429006982,0.432619,69345.0,69339.0,0.16855364]
[1730429007186,0.144209,69344.0,69339.0,0.31277164]
[1730429007413,0.144206,69346.0,69340.0,0.144216]
[1730429007634,0.46769576,69356.0,69343.0,0.24902364]
[1730429007845,0.21769576,69349.0,69344.0,0.288417]
[1730429008063,0.144196,69350.0,69345.0,0.144205]
[1730429008490,0.46769576,69356.0,69343.0,0.24902364]
[1730429008491,0.46769576,69356.0,69344.0,0.288415]
[1730429008702,0.46769576,69356.0,69348.0,0.144199]
[1730429008923,0.144192,69352.0,69346.0,0.144202]
[1730429009348,0.144194,69351.0,69346.0,0.144202]
[1730429009989,0.28838,69353.0,69343.0,0.24902364]
[1730429010203,0.14419,69353.0,69347.0,0.1442]
[1730429010433,0.14419,69353.0,69343.0,0.24902364]
[1730429010644,0.005,69349.0,69347.0,0.1442]
[1730429010890,0.21769576,69348.0,69343.0,0.288421]
[1730429011119,0.005,69349.0,69346.0,0.144203]
[1730429011370,0.005,69349.0,69344.0,0.04553446]
[1730429011603,0.005,69347.0,69342.0,0.31113564]
[1730429011851,0.005,69347.0,69342.0,0.16692364]
[1730429013241,0.144208,69345.0,69337.0,0.144222]
[1730429013249,0.144216,69341.0,69331.0,0.288471]
[1730429013485,0.144216,69341.0,69330.0,0.16692364]
[1730429013486,0.005,69344.0,69332.0,0.50038301]
[1730429013711,0.144217,69340.0,69332.0,0.28268725]